Workbook

Sheet FSRgr
B1: %,AFF,FACCOUNT,UACCOUNT | C1: %,AFF,FDESCR,UDESCR | D1: %,QNIU_GL_FSRACTUAL_GFA_NS,CFIELD1_4,SPER | F1: %,QNIU_GL_FSRBUDGETF_NS,CA.POSTED_TOTAL_AMT,SLTD,R | G1: %,QNIU_GL_FSROBLIGATION_NS,CA.POSTED_TOTAL_AMT,SYTD | H1: %,QNIU_GL_FSRACTUAL_GFA_NS,CFIELD1_4,SYTD
B2: ="Business Unit: " &RBU -> Business Unit: NIUDK | F2: Financial Summary Report | H2: ="Report ID: "&RID -> Report ID: FSRGRANT | L2: Chemistry and Biochemistry | M2: NIUDK
B3: Manager : Principal Investigator | F3: =IF(PER <> 998,TEXT(ASOD,"mmmm"),"Adjustments") &" of FY " &FY -> December of FY 2020 | H3: Project Dates: 09/01/2018-09/01/2023 | L3: Klumpp,Douglas A | M3: G1A62670
B4: Project: G9B12345 Sponsored Programs Adminisration | F4: ="Run Date: " &TEXT(NvsEndTime,"mmmm dd, yyyy at HH:MM AM/PM") -> Run Date: January 09, 2020 at 06:17 PM | H4: ="Fund : " & fund & " - " & fund_descr -> Fund : 44 - Current Restricted Funds | L4: Current Restricted Funds | M4: 2020
L5: 2018-09-20 | M5: 2019-12-31
D6: ="Activity of "&IF(PER <> 998,TEXT(ASOD,"mmmm"),"Adjustments") &" of FY " &FY -> Activity of December of FY 2020 | H6: ="As of "&IF(PER <> 998,TEXT(ASOD,"mmmm"),"Adjustments") &" of FY " &FY -> As of December of FY 2020 | L6: 2021-08-31 | M6: Period 6 - 2019-12-01 | N6: =TEXT(M5,"MMMM D, YYYY") -> December 31, 2019 | Q6: =TEXT(P6,"MM/DD/YY") -> 
B7: Assets | L7: 44 | M7: FSRGRANT | N7: 6 | O7: Northern Illinois University
A8: . | C8: Cash | D8: =ROUND((-1*(D19+D10)),2) -> 30943.23 | H8: =ROUND((-1*(H19+H10)),2) -> -4963.1
A10: %,FACCOUNT,TACCOUNT_RPT,X,NNON-CASH_ASSETS | C10: Non-Cash Assets | D10: 0 | F10: 0 | G10: 0 | H10: 0 | P10: Project Dates : -
C12: Total Assets | D12: =ROUND((D8+D10),2) -> 30943.23 | E12: =D8:D10 ->  | H12: =ROUND((H8+H10),2) -> -4963.1
P13: Project : %APN% -
B14: Liabilities and Fund Equity (FE)
A15: %,FACCOUNT,TACCOUNT_RPT,X,NLIABILITIES | C15: Liabilities | D15: 0 | F15: 0 | G15: 0 | H15: 0
C17: Chg to FE (Rev. - Exp.) | D17: =ROUND((D32+D137),2) -> -30943.23 | H17: =ROUND((H32+H137),2) -> 4963.1
C19: Total Liabilities and Equity | D19: =ROUND((D15+D17),2) -> -30943.23 | H19: =ROUND((H15+H17),2) -> 4963.1
D23: Period | F23: Project | H23: Project | I23: Available
D24: Actual | F24: Budget | G24: Obligations | H24: To Date | I24: Budget
B26: Revenues & Transfers
A27: %,V452650 | B27: 452650 | C27: Recpts From Fed Grants/Contrct | D27: -35906.33 | F27: -420529 | G27: 0 | H27: -87362.11
A28: %,FACCOUNT,TACCOUNT_RPT,X,NREVENUE | C28: Revenue | D28: -35906.33 | F28: -420529 | G28: 0 | H28: -87362.11 | I28: =IF(FundNo="X",F28-(G28+H28),F28-(G28+H28)) -> -333166.89
A30: %,FACCOUNT,TACCOUNT_RPT,X,NTRANSFERS | C30: Transfers | D30: 0 | F30: 0 | G30: 0 | H30: 0 | I30: =IF(FundNo="X",F30-(G30+H30),F30-(G30+H30)) -> 0
C32: Total Revenues & Transfers | D32: =D28+D30 -> -35906.33 | F32: =F28+F30 -> -420529 | G32: =G28+G30 -> 0 | H32: =H28+H30 -> -87362.11 | I32: =I28+I30 -> -333166.89
B34: Direct Expenses
A35: %,FACCOUNT,TACCOUNT_RPT,X,NCOGS | C35: Cost of Goods Sold | D35: 0 | F35: 0 | G35: 0 | H35: 0 | I35: =IF(FundNo="X",F35-(G35+H35),F35-(G35+H35)) -> 0
B37: Personnel Services | I37: =IF(FundNo="X",F37-(G37+H37),F37-(G37+H37)) -> 0
A39: %,FACCOUNT,TACCOUNT_RPT,X,NAPPROP_FUNDS_PAYROLL | C39: Appropriated Funds Payroll | D39: 0 | F39: 0 | G39: 0 | H39: 0 | I39: =IF(FundNo="X",F39-(G39+H39),F39-(G39+H39)) -> 0
A41: %,FACCOUNT,TACCOUNT_RPT,X,NSERVICE_DEPARTMENT | C41: Service Department | D41: 0 | F41: 0 | G41: 0 | H41: 0 | I41: =IF(FundNo="X",F41-(G41+H41),F41-(G41+H41)) -> 0
A43: %,V641000 | B43: 641000 | C43: Pers Svc-Faculty | D43: 0 | F43: 32575 | G43: 0 | H43: 11535.14
A44: %,FACCOUNT,TACCOUNT_RPT,X,NREG_FACULTY_STAFF | C44: Regular Faculty | D44: 0 | F44: 32575 | G44: 0 | H44: 11535.14 | I44: =IF(FundNo="X",F44-(G44+H44),F44-(G44+H44)) -> 21039.86
A46: %,FACCOUNT,TACCOUNT_RPT,X,NFACULTY_SUMMER | C46: Faculty Summer | D46: 0 | F46: 0 | G46: 0 | H46: 0 | I46: =IF(FundNo="X",F46-(G46+H46),F46-(G46+H46)) -> 0
A48: %,V644000 | B48: 644000 | C48: Pers Svc-Grad Asst | D48: 1357.63 | F48: 143593 | G48: 24437.34 | H48: 28223.85
A49: %,FACCOUNT,TACCOUNT_RPT,X,NGRADUATE_ASSISTANTS | C49: Graduate Assistants | D49: 1357.63 | F49: 143593 | G49: 24437.34 | H49: 28223.85 | I49: =IF(FundNo="X",F49-(G49+H49),F49-(G49+H49)) -> 90931.81
A51: %,FACCOUNT,TACCOUNT_RPT,X,NGRAD_ASSISTANTS_SUMM | C51: Graduate Assistants Summer | D51: 0 | F51: 0 | G51: 0 | H51: 0 | I51: =IF(FundNo="X",F51-(G51+H51),F51-(G51+H51)) -> 0
A53: %,V646000 | B53: 646000 | C53: Pers Svc-Extra Help | D53: 671 | F53: 0 | G53: 0 | H53: 1394.25
A54: %,FACCOUNT,TACCOUNT_RPT,X,NEXTRA_HELP | C54: Extra Help | D54: 671 | F54: 0 | G54: 0 | H54: 1394.25 | I54: =IF(FundNo="X",F54-(G54+H54),F54-(G54+H54)) -> -1394.25
A56: %,FACCOUNT,TACCOUNT_RPT,X,NOPERATING_STAFF | C56: Operating Staff | D56: 0 | F56: 0 | G56: 0 | H56: 0 | I56: =IF(FundNo="X",F56-(G56+H56),F56-(G56+H56)) -> 0
A58: %,FACCOUNT,TACCOUNT_RPT,X,NOVERTIME | C58: Overtime | D58: 0 | F58: 0 | G58: 0 | H58: 0 | I58: =IF(FundNo="X",F58-(G58+H58),F58-(G58+H58)) -> 0
A60: %,V648100 | B60: 648100 | C60: Pers Svc-Students | D60: 0 | F60: 18362 | G60: 0 | H60: 3744
A61: %,FACCOUNT,TACCOUNT_RPT,X,NPERS_SVC_STUDENTS | C61: Personal Services - Students | D61: 0 | F61: 18362 | G61: 0 | H61: 3744 | I61: =IF(FundNo="X",F61-(G61+H61),F61-(G61+H61)) -> 14618
A63: %,FACCOUNT,TACCOUNT_RPT,X,NWORKSTUDY | C63: Work Study | D63: 0 | F63: 0 | G63: 0 | H63: 0 | I63: =IF(FundNo="X",F63-(G63+H63),F63-(G63+H63)) -> 0
A65: %,V660100 | B65: 660100 | C65: Retirement | D65: 0 | F65: 6128 | G65: 0 | H65: 1420.84
A66: %,V660130 | B66: 660130 | C66: FICA | D66: 51.32 | F66: 0 | G66: 0 | H66: 557.7
A67: %,FACCOUNT,TACCOUNT_RPT,X,NALL_STAFF_BENEFITS | C67: All Staff Benefits | D67: 51.32 | F67: 6128 | G67: 0 | H67: 1978.54 | I67: =IF(FundNo="X",F67-(G67+H67),F67-(G67+H67)) -> 4149.46
A69: %,FACCOUNT,TACCOUNT_RPT,X,NLEAVE_BENEFIT_PAYOUT | C69: Sick/Vacation Payout | D69: 0 | F69: 0 | G69: 0 | H69: 0 | I69: =IF(FundNo="X",F69-(G69+H69),F69-(G69+H69)) -> 0
C71: Total Personnel Services | D71: =D39+D41+D44+D46+D49+D51+D54+D56+D58+D61+D63+D67+D69 -> 2079.95 | F71: =F39+F41+F44+F46+F49+F51+F54+F56+F58+F61+F63+F67+F69 -> 200658 | G71: =G39+G41+G44+G46+G49+G51+G54+G56+G58+G61+G63+G67+G69 -> 24437.34 | H71: =H39+H41+H44+H46+H49+H51+H54+H56+H58+H61+H63+H67+H69 -> 46875.78 | I71: =IF(FundNo="X",F71-(G71+H71),F71-(G71+H71)) -> 129344.88
A73: %,V670330 | B73: 670330 | C73: Student travel-reimb student | D73: 0 | F73: 0 | G73: 0 | H73: 36.1
A74: %,V690015 | B74: 690015 | C74: R&M,Scientific/Medical Eqpmnt | D74: 0 | F74: 0 | G74: 0 | H74: 259.2
A75: %,V690050 | B75: 690050 | C75: R&M,All Oth-inc music instrmts | D75: 0 | F75: 0 | G75: 1256 | H75: 0
A76: %,FACCOUNT,TACCOUNT_RPT,X,NALL_CONTRACTUAL_SVC | C76: Contractual Services | D76: 0 | F76: 0 | G76: 1256 | H76: 295.3 | I76: =IF(FundNo="X",F76-(G76+H76),F76-(G76+H76)) -> -1551.3
A78: %,V800210 | B78: 800210 | C78: Office/Library Supplies-exc fa | D78: 0 | F78: 0 | G78: 0 | H78: 42.79
A79: %,V800220 | B79: 800220 | C79: Scientific & Lab Supplies | D79: 1127.9 | F79: 37820 | G79: 7217.89 | H79: 13176.98
A80: %,V800320 | B80: 800320 | C80: Med,Scient,Lab Eqp,$100 limit | D80: 0 | F80: 0 | G80: 0 | H80: 231.34
A81: %,FACCOUNT,TACCOUNT_RPT,X,NCOMMODITIES | C81: Commodities | D81: 1127.9 | F81: 37820 | G81: 7217.89 | H81: 13451.11 | I81: =IF(FundNo="X",F81-(G81+H81),F81-(G81+H81)) -> 17151
A83: %,V830610 | B83: 830610 | C83: Travel - Grants Administration | D83: 0 | F83: 7500 | G83: 0 | H83: 0
A84: %,FACCOUNT,TACCOUNT_RPT,X,NTRAVEL | C84: Travel | D84: 0 | F84: 7500 | G84: 0 | H84: 0 | I84: =IF(FundNo="X",F84-(G84+H84),F84-(G84+H84)) -> 7500
A86: %,FACCOUNT,TACCOUNT_RPT,X,NAUTOMOTIVE | C86: Automotive | D86: 0 | F86: 0 | G86: 0 | H86: 0 | I86: =IF(FundNo="X",F86-(G86+H86),F86-(G86+H86)) -> 0
A88: %,FACCOUNT,TACCOUNT_RPT,X,NAWARDS_GRANTS | C88: Awards and Grants | D88: 0 | F88: 0 | G88: 0 | H88: 0 | I88: =IF(FundNo="X",F88-(G88+H88),F88-(G88+H88)) -> 0
A90: %,FACCOUNT,TACCOUNT_RPT,X,NMATCHING_FUNDS | C90: Matching Funds | D90: 0 | F90: 0 | G90: 0 | H90: 0 | I90: =IF(FundNo="X",F90-(G90+H90),F90-(G90+H90)) -> 0
A92: %,FACCOUNT,TACCOUNT_RPT,X,NSCHLRSHP/AWRD_NON_GR | C92: Scholarship/Award,Non-GR Funds | D92: 0 | F92: 0 | G92: 0 | H92: 0 | I92: =IF(FundNo="X",F92-(G92+H92),F92-(G92+H92)) -> 0
A94: %,FACCOUNT,TACCOUNT_RPT,X,NGRANTS_IN_AID | C94: Grants-In-Aid | D94: 0 | F94: 0 | G94: 0 | H94: 0 | I94: =IF(FundNo="X",F94-(G94+H94),F94-(G94+H94)) -> 0
A96: %,FACCOUNT,TACCOUNT_RPT,X,NALL_TELECOMM | C96: All Telecommunications | D96: 0 | F96: 0 | G96: 0 | H96: 0 | I96: =IF(FundNo="X",F96-(G96+H96),F96-(G96+H96)) -> 0
A98: %,FACCOUNT,TACCOUNT_RPT,X,NEQUIPMENT/LIBRARY | C98: Equipment/Library Books | D98: 0 | F98: 0 | G98: 0 | H98: 0 | I98: =IF(FundNo="X",F98-(G98+H98),F98-(G98+H98)) -> 0
A100: %,V860235 | B100: 860235 | C100: Institutional Support | D100: 0 | F100: 54022 | G100: 0 | H100: 3570
A101: %,FACCOUNT,TACCOUNT_RPT,X,NINST_SUPPORT | C101: Institutional Support | D101: 0 | F101: 54022 | G101: 0 | H101: 3570 | I101: =IF(FundNo="X",F101-(G101+H101),F101-(G101+H101)) -> 50452
A103: %,FACCOUNT,TACCOUNT_RPT,X,NCAP_REPR/PERM_IMP | C103: Capital Repair/Perm Improv | D103: 0 | F103: 0 | G103: 0 | H103: 0 | I103: =IF(FundNo="X",F103-(G103+H103),F103-(G103+H103)) -> 0
A105: %,FACCOUNT,TACCOUNT_RPT,X,NOTHER_EXPENSES | C105: Other Expenses | D105: 0 | F105: 0 | G105: 0 | H105: 0 | I105: =IF(FundNo="X",F105-(G105+H105),F105-(G105+H105)) -> 0
C107: Total Direct Expenses | D107: =D71+D76+D81+D84+D86+D88+D90+D92+D94+D96+D98+D101+D103+D105 -> 3207.85 | F107: =F71+F76+F81+F84+F86+F88+F90+F92+F94+F96+F98+F101+F103+F105 -> 300000 | G107: =G71+G76+G81+G84+G86+G88+G90+G92+G94+G96+G98+G101+G103+G105 -> 32911.23 | H107: =H71+H76+H81+H84+H86+H88+H90+H92+H94+H96+H98+H101+H103+H105 -> 64192.19 | I107: =IF(FundNo="X",F107-(G107+H107),F107-(G107+H107)) -> 202896.58
B109: Indirect Expenses
A110: %,FACCOUNT,TACCOUNT_RPT,X,NOVERHEAD_EXP | C110: Overhead Expenses | D110: 0 | F110: 0 | G110: 0 | H110: 0 | I110: =IF(FundNo="X",F110-(G110+H110),F110-(G110+H110)) -> 0
A112: %,FACCOUNT,TACCOUNT_RPT,X,NDIRECT_OVRHEAD_COSTS | C112: Direct Overhead Costs | D112: 0 | F112: 0 | G112: 0 | H112: 0 | I112: =IF(FundNo="X",F112-(G112+H112),F112-(G112+H112)) -> 0
A114: %,V901200 | B114: 901200 | C114: Indirect Overhead Costs | D114: 1755.25 | F114: 120529 | G114: 0 | H114: 28133.02
A115: %,FACCOUNT,TACCOUNT_RPT,X,NINDIRECT_COST | C115: Indirect Costs | D115: 1755.25 | F115: 120529 | G115: 0 | H115: 28133.02 | I115: =IF(FundNo="X",F115-(G115+H115),F115-(G115+H115)) -> 92395.98
A117: %,FACCOUNT,TACCOUNT_RPT,X,NMISC_BOND_EXP | C117: Misc Expenses & Debt Service | D117: 0 | F117: 0 | G117: 0 | H117: 0 | I117: =IF(FundNo="X",F117-(G117+H117),F117-(G117+H117)) -> 0
A119: %,FACCOUNT,TACCOUNT_RPT,X,NPHYSPLNT_OHEAD_COSTS | C119: Physical Plant Overhead Costs | D119: 0 | F119: 0 | G119: 0 | H119: 0 | I119: =IF(FundNo="X",F119-(G119+H119),F119-(G119+H119)) -> 0
A121: %,FACCOUNT,TACCOUNT_RPT,X,NWRITE-OFF_NONTAG | C121: Write-Off Non-Taggable Eqpment | D121: 0 | F121: 0 | G121: 0 | H121: 0 | I121: =IF(FundNo="X",F121-(G121+H121),F121-(G121+H121)) -> 0
A123: %,FACCOUNT,TACCOUNT_RPT,X,NREAL/UNREAL_LOSS | C123: Realized/Unrealized Loss | D123: 0 | F123: 0 | G123: 0 | H123: 0 | I123: =IF(FundNo="X",F123-(G123+H123),F123-(G123+H123)) -> 0
A125: %,FACCOUNT,TACCOUNT_RPT,X,NRESERVE_TSF | C125: Reserve Transfers | D125: 0 | F125: 0 | G125: 0 | H125: 0 | I125: =IF(FundNo="X",F125-(G125+H125),F125-(G125+H125)) -> 0
A127: %,FACCOUNT,TACCOUNT_RPT,X,NEQUIPMNT_RES | C127: Equipment Reserves | D127: 0 | F127: 0 | G127: 0 | H127: 0 | I127: =IF(FundNo="X",F127-(G127+H127),F127-(G127+H127)) -> 0
A129: %,FACCOUNT,TACCOUNT_RPT,X,NSTUDENT_INSURANCE | C129: Student Insurance | D129: 0 | F129: 0 | G129: 0 | H129: 0 | I129: =IF(FundNo="X",F129-(G129+H129),F129-(G129+H129)) -> 0
A131: %,FACCOUNT,TACCOUNT_RPT,X,NSTDNT_LOAN_CANCEL | C131: Student Loan Cancellations/Exp | D131: 0 | F131: 0 | G131: 0 | H131: 0 | I131: =IF(FundNo="X",F131-(G131+H131),F131-(G131+H131)) -> 0
A133: %,FACCOUNT,TACCOUNT_RPT,X,NEXPENSE_UNDEFND | C133: Expense Not Defined | D133: 0 | F133: 0 | G133: 0 | H133: 0 | I133: =IF(FundNo="X",F133-(G133+H133),F133-(G133+H133)) -> 0
C135: Total Indirect Expenses | D135: =D110+D112+D115+D117+D119+D121+D123+D125+D127+D129+D131+D133 -> 1755.25 | F135: =F110+F112+F115+F117+F119+F121+F123+F125+F127+F129+F131+F133 -> 120529 | G135: =G110+G112+G115+G117+G119+G121+G123+G125+G127+G129+G131+G133 -> 0 | H135: =H110+H112+H115+H117+H119+H121+H123+H125+H127+H129+H131+H133 -> 28133.02 | I135: =IF(FundNo="X",F135-(G135+H135),F135-(G135+H135)) -> 92395.98
A137: EOF | C137: Total Expenses | D137: =D35+D71+D76+D81+D84+D86+D88+D90+D92+D94+D96+D98+D101+D103+D105+D108+D110+D112+D115+D117+D119+D121+D123+D125+D127+D129+D131+D133 -> 4963.1 | F137: =F35+F71+F76+F81+F84+F86+F88+F90+F92+F94+F96+F98+F101+F103+F105+F108+F110+F112+F115+F117+F119+F121+F123+F125+F127+F129+F131+F133 -> 420529 | G137: =G35+G71+G76+G81+G84+G86+G88+G90+G92+G94+G96+G98+G101+G103+G105+G108+G110+G112+G115+G117+G119+G121+G123+G125+G127+G129+G131+G133 -> 32911.23 | H137: =H35+H71+H76+H81+H84+H86+H88+H90+H92+H94+H96+H98+H101+H103+H105+H108+H110+H112+H115+H117+H119+H121+H123+H125+H127+H129+H131+H133 -> 92325.21 | I137: =IF(FundNo="X",F137-(G137+H137),F137-(G137+H137)) -> 295292.56
B142: See next page for explanations on reading the FSR

Sheet Explanations
A3: 1 | B3: Period Actual | C3: Expenditures for month
B4: 3207.85
A7: 2 | B7: Budget | C7: Award budget entered into the financial system using NIU account codes.
B8: 300000 | C8: It may not be exactly aligned with the internal/agency budget categories.
A11: 3 | B11: Obligations | C11: Obligations that have not yet been charged to your award.
B12: 32911.23 | C12: Obligations typically consist of personnel, purchase requisitions, subawards, and contracts.
C13: Personnel obligations are for the full contract of an employee through the current fiscal year.
C14: Fringes associated with personnel are NOT obligated.
C15: Obligations are only for the current Fiscal Year.
A18: 4 | B18: Project To Date | C18: The cumulative total of all expenses that have been charged to the award since it began.
B19: 64192.19 | C19: The far left of the FSR there is a list of Direct Expenses, this is a break down of the award budget & expenses
C20: using NIU account codes.
C21: Current fiscal year details on expenses can be found in the monthly HR report, the period detail report
C22: and the obligations report.
A24: 5 | B24: Available Budget | C24: Funds available to spend.
B25: 202896.58 | C25: The available budget is the sum of:
C26: 300000 | D26: Project Budget
C27: -$32,911.23 | D27: Obligations
C28: -$64,192.19 | D28: Project to Date
C29: 202896.58 | D29: Available Budget
C30: ***Reports only reflect what is in the financial system.
C31: Any expense still in the approval process will NOT be accounted for in the reports.***
A35: Contact your GCA if you have questions about:
A36: Reports
A37: Invoicing
A38: Revenue
A39: Indirects
A40: Expenses Crossing Fiscal Years
